bitfinex-derivatives/quotes_BTCF0:USTF0_20250527
["timestamp","ask_amount","ask_price","bid_price","bid_amount"]
[1748346353590,0.52231688,109550.0,109540.0,1.28444338]
[1748346354899,0.52231688,109550.0,109540.0,1.4529522]
[1748346355781,0.49153688,109550.0,109540.0,1.29211168]
[1748346356096,0.49153688,109550.0,109540.0,1.28444338]
[1748346356286,0.49141688,109550.0,109540.0,1.28444338]
[1748346356478,0.49153688,109550.0,109540.0,1.28444338]
[1748346356680,0.49153688,109550.0,109540.0,1.28444334]
[1748346357287,0.49153688,109550.0,109540.0,1.45295023]
[1748346357492,0.06565688,109550.0,109540.0,1.45295023]
[1748346357797,0.49149688,109550.0,109540.0,1.45295023]
[1748346359283,0.03455688,109550.0,109540.0,1.39939668]
[1748346359483,0.46019688,109550.0,109540.0,1.29467852]
[1748346360000,0.46007688,109550.0,109540.0,1.2902867]
[1748346360191,0.46019688,109550.0,109540.0,1.2902867]
[1748346360381,0.46019688,109550.0,109540.0,1.2432551]
[1748346360586,0.46019688,109550.0,109540.0,1.29027968]
[1748346360997,0.00136998,109560.0,109550.0,0.1824982]
[1748346361189,0.42692998,109560.0,109550.0,1.15856048]
[1748346361397,0.42692998,109560.0,109550.0,1.23134269]
[1748346361594,0.46248998,109560.0,109550.0,1.23134269]
[1748346362397,0.46348998,109560.0,109550.0,1.23134269]
[1748346362601,0.46348998,109560.0,109550.0,1.23234269]
[1748346362801,0.46348998,109560.0,109550.0,1.2221078]
[1748346363006,0.49588998,109560.0,109550.0,1.2221078]
[1748346363390,0.49452,109560.0,109550.0,1.2221078]
[1748346363599,0.49452,109560.0,109550.0,1.23234269]
[1748346363901,0.49452,109560.0,109550.0,1.23231006]
[1748346364301,0.49452,109560.0,109550.0,1.22207517]
[1748346365889,0.49452,109560.0,109550.0,1.23231006]
[1748346366089,0.49452,109560.0,109550.0,1.22207517]
[1748346366896,0.49452,109560.0,109550.0,1.18274208]
[1748346370708,0.6770025,109560.0,109550.0,1.18274208]
[1748346370897,0.7088025,109560.0,109550.0,1.18274208]
[1748346371304,0.7088025,109560.0,109550.0,0.82194208]
[1748346372609,0.7088025,109560.0,109550.0,1.02709142]
[1748346373603,0.7088025,109560.0,109550.0,0.86890072]
[1748346373799,0.7088025,109560.0,109550.0,0.74721031]
[1748346374003,0.7088025,109560.0,109550.0,0.86890072]
[1748346374198,0.7088025,109560.0,109550.0,0.83860072]
[1748346374403,0.7088025,109560.0,109550.0,0.83860147]
[1748346374806,0.7088025,109560.0,109550.0,0.79164208]
[1748346377404,1.0696025,109560.0,109550.0,0.79164208]
[1748346378711,1.0696025,109560.0,109550.0,0.67566747]
[1748346378901,1.0696025,109560.0,109550.0,0.79164208]
[1748346379503,0.6414025,109560.0,109550.0,0.83861487]
[1748346379701,0.52752,109560.0,109550.0,0.8921076]
[1748346379895,0.7100025,109560.0,109550.0,1.02792576]
[1748346380406,0.7100025,109560.0,109550.0,1.03231758]
[1748346380805,0.2806025,109560.0,109550.0,1.03231758]
[1748346381010,0.52736,109560.0,109550.0,1.03231758]
[1748346381409,0.52736,109560.0,109550.0,0.98535109]
[1748346381608,0.52736,109560.0,109550.0,1.03233329]
[1748346381609,0.463,109560.0,109550.0,1.03233329]
[1748346381812,0.4935,109560.0,109550.0,1.03233329]
[1748346382400,0.09532,109560.0,109550.0,1.03233329]
[1748346382599,0.52428,109560.0,109550.0,1.03233329]
[1748346383408,0.52428,109560.0,109550.0,1.39313329]
[1748346383604,0.46292,109560.0,109550.0,1.22725724]
[1748346383819,0.001,109560.0,109550.0,1.23492057]
[1748346384009,0.43032,109560.0,109550.0,1.29100008]
[1748346384208,0.4302,109560.0,109550.0,1.12151752]
[1748346384507,0.4302,109560.0,109550.0,1.23749213]
[1748346384715,0.43024,109560.0,109550.0,1.23750068]
[1748346385217,0.43032,109560.0,109550.0,1.12152607]
[1748346385412,0.43032,109560.0,109550.0,1.17503251]
[1748346385619,0.46362,109560.0,109550.0,1.29100712]
[1748346385918,0.00112,109560.0,109550.0,1.39412712]
[1748346388313,0.00112,109560.0,109550.0,1.39414632]
[1748346389313,0.03480659,109570.0,109560.0,0.1824825]
[1748346389517,0.00150659,109570.0,109560.0,1.45467696]
[1748346389914,0.0329,109580.0,109570.0,0.1824658]
[1748346390116,0.0329,109580.0,109570.0,1.2851541]
[1748346390521,0.03302,109580.0,109570.0,1.2851541]
[1748346390822,0.03302,109580.0,109570.0,1.2831541]
[1748346391815,0.03302,109580.0,109570.0,1.28311864]
[1748346392322,0.03302,109580.0,109570.0,1.272894]
[1748346393820,0.00012,109580.0,109570.0,1.272894]
[1748346394019,0.00012,109580.0,109570.0,1.28311864]
[1748346394215,0.00012,109580.0,109570.0,1.38623864]
[1748346394417,0.52503688,109590.0,109580.0,0.1824491]
[1748346394730,0.52503688,109590.0,109580.0,1.20896392]
[1748346394927,0.52515688,109590.0,109580.0,1.2038654]
[1748346395127,0.52515688,109590.0,109580.0,1.20896327]
[1748346396038,0.70958928,109590.0,109580.0,1.22171078]
[1748346396838,0.71058928,109590.0,109580.0,0.86091078]
[1748346398441,0.52815688,109590.0,109580.0,0.86091078]
[1748346398739,0.52771688,109590.0,109580.0,0.86091078]
[1748346398945,0.52771688,109590.0,109580.0,0.90780034]
[1748346399132,0.71014928,109590.0,109580.0,0.90780034]
[1748346399332,0.71014928,109590.0,109580.0,1.26860034]
[1748346399739,0.71014928,109590.0,109580.0,1.28000663]
[1748346400236,0.28218928,109590.0,109580.0,1.28000663]
[1748346400735,0.09975688,109590.0,109580.0,1.28000663]
[1748346400927,0.00325688,109590.0,109580.0,1.23311707]
[1748346401132,0.00325688,109590.0,109580.0,1.32826642]
[1748346401430,0.00325688,109590.0,109580.0,1.75586642]
[1748346401631,0.00325688,109590.0,109580.0,1.75843978]
[1748346402034,0.00125688,109590.0,109580.0,1.75843978]
[1748346402338,0.10136942,109600.0,109590.0,0.1824324]
[1748346402539,0.10136942,109600.0,109590.0,1.37983676]
[1748346402834,0.10136942,109600.0,109590.0,1.40146638]
[1748346403036,0.10136942,109600.0,109590.0,1.41499423]
[1748346403539,0.10148942,109600.0,109590.0,1.41499423]
[1748346404044,0.10148942,109600.0,109590.0,1.3636465]
[1748346405128,0.10148942,109600.0,109590.0,1.35542186]
[1748346405841,0.10012,109600.0,109590.0,1.35536239]
[1748346406243,0.10012,109600.0,109590.0,1.3629947]
[1748346407235,0.09833688,109610.0,109600.0,0.1824158]
[1748346407442,0.09833688,109610.0,109600.0,1.20751737]
[1748346409048,0.09833688,109610.0,109600.0,1.20751724]
[1748346409639,0.09833688,109610.0,109600.0,1.20851724]
[1748346410137,0.09833688,109610.0,109600.0,1.2553063]
[1748346410334,0.09833688,109610.0,109600.0,1.20851724]
[1748346410537,0.03253688,109610.0,109600.0,1.21614955]
[1748346410848,0.03265688,109610.0,109600.0,1.21614955]
[1748346411036,0.03265688,109610.0,109600.0,1.26293777]
[1748346411344,0.06465688,109610.0,109600.0,1.26293777]
[1748346411744,0.06465688,109610.0,109600.0,1.31621803]
[1748346412741,0.09745688,109610.0,109600.0,1.31622865]
[1748346413048,0.09745688,109610.0,109600.0,1.262944]
[1748346413247,0.09745688,109610.0,109600.0,1.42094681]
[1748346415250,0.09745688,109610.0,109600.0,1.31622865]
[1748346416045,0.09745688,109610.0,109600.0,1.41858865]
[1748346416841,0.09745688,109610.0,109600.0,1.41864268]
[1748346418151,0.09745688,109610.0,109600.0,1.41355671]
[1748346419757,0.09745688,109610.0,109600.0,1.28483459]
[1748346419953,0.09745688,109610.0,109600.0,1.41355671]
[1748346420152,0.09745688,109610.0,109600.0,1.3553339]
[1748346420353,0.09745688,109610.0,109600.0,1.41364802]
[1748346421251,0.09745688,109610.0,109600.0,1.05284802]
[1748346422147,0.09745688,109610.0,109600.0,1.02054802]
[1748346423748,0.09745688,109610.0,109600.0,1.02059522]
[1748346424455,0.09745688,109610.0,109600.0,0.96720836]
[1748346424652,0.09745688,109610.0,109600.0,1.02060255]
[1748346425554,0.52437688,109610.0,109600.0,1.02060255]
[1748346426548,0.52437688,109610.0,109600.0,1.01297024]
[1748346427247,0.52437688,109610.0,109600.0,0.96983303]
[1748346427450,0.52437688,109610.0,109600.0,1.0130321]
[1748346427849,0.52437688,109610.0,109600.0,1.02325674]
[1748346428154,0.52437688,109610.0,109600.0,0.97422485]
[1748346428544,0.52437688,109610.0,109600.0,1.06056312]
[1748346429161,0.52437688,109610.0,109600.0,1.00273303]
[1748346429958,0.52437688,109610.0,109600.0,0.98982889]
[1748346430757,0.52437688,109610.0,109600.0,0.98988114]
[1748346431464,0.52437688,109610.0,109600.0,0.86819073]
[1748346431665,0.52437688,109610.0,109600.0,0.98988114]
[1748346432367,0.52437688,109610.0,109600.0,0.98992517]
[1748346433868,0.52437688,109610.0,109600.0,1.14817751]
[1748346434262,0.52437688,109610.0,109600.0,1.14817889]
[1748346435665,0.70677628,109610.0,109600.0,1.14817889]
[1748346436265,0.52437688,109610.0,109600.0,1.14817889]
[1748346436866,0.52437688,109610.0,109600.0,1.09464437]
[1748346437067,0.52437688,109610.0,109600.0,0.98992621]
[1748346437872,0.52437688,109610.0,109600.0,0.98992843]
[1748346440855,0.09745688,109610.0,109600.0,0.98992843]
[1748346441061,0.45841688,109610.0,109600.0,1.35072843]
[1748346441268,0.45841688,109610.0,109600.0,1.3393246]
[1748346441574,0.45841688,109610.0,109600.0,1.3507284]
[1748346442066,0.45829688,109610.0,109600.0,1.3507284]
[1748346442661,0.45829688,109610.0,109600.0,1.23491042]
[1748346442968,0.45829688,109610.0,109600.0,1.3507284]
[1748346443472,0.45829688,109610.0,109600.0,1.40426608]
[1748346443967,0.06313688,109610.0,109600.0,1.40426608]
[1748346444371,0.09383688,109610.0,109600.0,1.4086579]
[1748346444871,0.09383688,109610.0,109600.0,1.40865993]
[1748346445572,0.09383688,109610.0,109600.0,1.40426811]
[1748346448263,0.09383688,109610.0,109600.0,1.41567185]
[1748346448470,0.09383688,109610.0,109600.0,1.40426805]
[1748346448763,0.06313688,109610.0,109600.0,1.40426805]
[1748346449663,0.06313688,109610.0,109600.0,1.50898621]
[1748346451072,0.06313688,109610.0,109600.0,1.39316823]
[1748346451267,0.06313688,109610.0,109600.0,1.35072949]
[1748346451473,0.09323688,109610.0,109600.0,1.35072949]
[1748346451674,0.09323688,109610.0,109600.0,0.71333085]
[1748346451675,0.27563628,109610.0,109600.0,0.71333085]
[1748346451868,0.09323688,109610.0,109600.0,0.88756979]
[1748346452064,0.27563628,109610.0,109600.0,0.88756979]
[1748346453265,0.27563628,109610.0,109600.0,0.87616605]
[1748346454064,0.09323688,109610.0,109600.0,0.87616605]
[1748346455274,0.09323688,109610.0,109600.0,0.8761675]
[1748346456675,0.09323688,109610.0,109600.0,0.88055932]
[1748346457372,0.09323688,109610.0,109600.0,0.76474134]
[1748346457567,0.09323688,109610.0,109600.0,0.88055932]
[1748346458777,0.09323688,109610.0,109600.0,0.88055903]
[1748346459376,0.09323688,109610.0,109600.0,0.70169104]
[1748346459769,0.09323688,109610.0,109600.0,0.69729922]
[1748346460570,0.09323688,109610.0,109600.0,0.85555648]
[1748346460976,0.09323688,109610.0,109600.0,1.21635648]
[1748346461166,0.09323688,109610.0,109600.0,1.09466607]
[1748346461371,0.09323688,109610.0,109600.0,1.21635648]
[1748346461768,0.09323688,109610.0,109600.0,1.11163832]
[1748346462279,0.09323688,109610.0,109600.0,1.1119514]
[1748346462480,0.09323688,109610.0,109600.0,1.28186956]
[1748346464676,0.09323688,109610.0,109600.0,1.28626138]
[1748346465683,0.09323688,109610.0,109600.0,1.28626201]
[1748346466380,0.09323688,109610.0,109600.0,1.18154385]
[1748346467276,0.09323688,109610.0,109600.0,1.17044403]
[1748346467479,0.09323688,109610.0,109600.0,1.28626201]
[1748346469183,0.09323688,109610.0,109600.0,1.28626255]
[1748346470480,0.06313688,109610.0,109600.0,1.28626255]
[1748346470683,0.06325688,109610.0,109600.0,1.07044802]
[1748346470984,0.06325688,109610.0,109600.0,0.95463004]
[1748346471284,0.06325688,109610.0,109600.0,0.67654802]
[1748346471489,0.09445688,109610.0,109600.0,0.67654802]
[1748346471879,0.09445688,109610.0,109600.0,0.6721562]
[1748346472075,0.09445688,109610.0,109600.0,0.7033562]
[1748346472981,0.09445688,109610.0,109600.0,0.75052099]
[1748346473184,0.09445688,109610.0,109600.0,0.76074563]
[1748346473575,0.09445688,109610.0,109600.0,0.76074624]
[1748346478482,0.09445688,109610.0,109600.0,0.81445367]
[1748346478687,0.09445688,109610.0,109600.0,0.93079219]
[1748346479589,0.09445688,109610.0,109600.0,0.77790178]
[1748346479781,0.70213618,109610.0,109600.0,0.78377821]
[1748346479982,1.06293618,109610.0,109600.0,0.88792947]
[1748346480184,1.26525218,109610.0,109600.0,0.19745665]
[1748346480386,1.95799264,109610.0,109600.0,0.13733201]
[1748346480688,0.182416,109600.0,109590.0,0.00766131]
[1748346480988,1.10027798,109600.0,109590.0,0.35766131]
[1748346481179,1.35027798,109600.0,109590.0,0.35766131]
[1748346481381,1.40713474,109600.0,109590.0,0.35510795]
[1748346481589,1.40713474,109600.0,109590.0,0.35893232]
[1748346481788,1.40713474,109600.0,109590.0,0.35582437]
[1748346481999,1.40713474,109600.0,109590.0,0.354]
[1748346483483,1.43933474,109600.0,109590.0,0.354]
[1748346483683,1.46943474,109600.0,109590.0,0.354]
[1748346483894,1.35361676,109600.0,109590.0,0.354]
[1748346484393,1.10361676,109600.0,109590.0,0.354]
[1748346484581,1.04676,109600.0,109590.0,0.354]
[1748346485588,1.12264,109600.0,109590.0,0.354]
[1748346486193,1.12264,109600.0,109590.0,0.3868]
[1748346487483,1.031396,109600.0,109590.0,0.3868]
[1748346487683,1.12264,109600.0,109590.0,0.3868]
[1748346489587,1.031156,109600.0,109590.0,0.5692326]
[1748346489792,0.605636,109600.0,109590.0,0.3868]
[1748346490190,1.132876,109600.0,109590.0,0.3868]
[1748346490493,1.133036,109600.0,109590.0,0.3868]
[1748346490794,0.605636,109600.0,109590.0,0.3868]
[1748346491092,1.132996,109600.0,109590.0,0.5692327]
[1748346491890,1.132996,109600.0,109590.0,0.6007327]
[1748346492690,1.132796,109600.0,109590.0,0.6007327]
[1748346493990,1.132636,109600.0,109590.0,0.3868]
[1748346494187,1.132636,109600.0,109590.0,0.354]
[1748346494394,1.462636,109600.0,109590.0,0.354]
[1748346496495,1.462916,109600.0,109590.0,0.354]
[1748346498494,1.036756,109600.0,109590.0,0.354]
[1748346498800,1.462636,109600.0,109590.0,0.3865]
[1748346501396,1.462636,109600.0,109590.0,0.39089182]
[1748346502400,1.462636,109600.0,109590.0,0.3865]
[1748346502600,1.462636,109600.0,109590.0,0.22808863]
[1748346504088,1.68265811,109600.0,109590.0,0.09749113]
[1748346504289,1.68265811,109600.0,109590.0,0.0800001]
[1748346504290,1.73951487,109600.0,109590.0,0.0800001]
[1748346504695,1.82461231,109600.0,109590.0,0.0800001]
[1748346504903,1.63897744,109600.0,109590.0,0.0800001]
[1748346505198,1.76775555,109600.0,109590.0,0.0800001]
[1748346505391,1.63897744,109600.0,109590.0,0.0800001]
[1748346505603,1.76775555,109600.0,109590.0,0.0800001]
[1748346509605,1.68265811,109600.0,109590.0,0.0800001]
[1748346510497,1.68265811,109600.0,109590.0,0.1105001]
[1748346512102,1.79633624,109600.0,109590.0,0.1105001]
[1748346514412,1.79633624,109600.0,109590.0,0.1105]
[1748346514701,1.79633624,109600.0,109590.0,0.1115]
[1748346514702,1.80133624,109600.0,109590.0,0.1115]
[1748346514905,1.83293624,109600.0,109590.0,0.1115]
[1748346515205,1.83193624,109600.0,109590.0,0.1115]
[1748346515903,1.83693624,109600.0,109590.0,0.1125]
[1748346516299,1.70815813,109600.0,109590.0,0.1125]
[1748346516499,1.83693624,109600.0,109590.0,0.1125]
[1748346516708,1.83193624,109600.0,109590.0,0.1115]
[1748346516907,1.83593624,109600.0,109590.0,0.1115]
[1748346518712,1.83593624,109600.0,109590.0,0.081]
[1748346519516,1.83581624,109600.0,109590.0,0.081]
[1748346520315,1.83581624,109600.0,109590.0,0.1123]
[1748346523603,1.74457224,109600.0,109590.0,0.1123]
[1748346524309,1.02649413,109600.0,109590.0,0.1123]
[1748346524514,1.52193413,109600.0,109590.0,0.1451]
[1748346524813,1.61793413,109600.0,109590.0,0.1451]
[1748346525916,1.61793413,109600.0,109590.0,0.14949182]
[1748346526911,1.61793413,109600.0,109590.0,0.1451]
[1748346527315,1.504056,109600.0,109590.0,0.1451]
[1748346527618,1.58932824,109600.0,109590.0,0.1451]
[1748346527920,1.58932824,109600.0,109590.0,0.18179182]
[1748346528522,1.52598824,109600.0,109590.0,0.30348223]
[1748346528723,1.10062824,109600.0,109590.0,0.30348223]
[1748346528906,0.99930824,109600.0,109590.0,0.29909041]
[1748346529112,1.49340824,109600.0,109590.0,0.53909041]
[1748346529411,1.30027229,109600.0,109590.0,0.53909041]
[1748346529609,1.56027229,109600.0,109590.0,0.53909041]
[1748346530019,1.59247229,109600.0,109590.0,0.53909041]
[1748346531720,1.53560824,109600.0,109590.0,0.53909041]
[1748346532822,1.53560824,109600.0,109590.0,0.37219053]
[1748346533011,1.59700824,109600.0,109590.0,0.37219053]
[1748346536024,1.59700824,109600.0,109590.0,0.43779053]
[1748346537125,1.59700824,109600.0,109590.0,0.46929053]
[1748346537726,1.6538665,109600.0,109590.0,0.46929053]
[1748346538431,1.59700824,109600.0,109590.0,0.46929053]
[1748346538730,1.65386233,109600.0,109590.0,0.46929053]
[1748346540727,1.65386233,109600.0,109590.0,0.43779053]
[1748346542526,1.29306233,109600.0,109590.0,0.43779053]
[1748346543031,2.01466233,109600.0,109590.0,0.43779053]
[1748346543241,2.01466233,109600.0,109590.0,0.48492252]
[1748346546032,2.14344044,109600.0,109590.0,0.45242353]
[1748346546220,2.08658635,109600.0,109590.0,0.40529053]
[1748346546427,2.00131411,109600.0,109590.0,0.40529053]
[1748346546622,2.11499224,109600.0,109590.0,0.40529053]
[1748346550236,2.11938406,109600.0,109590.0,0.40529053]
[1748346550636,1.99060595,109600.0,109590.0,0.40529053]
[1748346551230,1.98621413,109600.0,109590.0,0.40529053]
[1748346552034,2.10208925,109600.0,109590.0,0.40529053]
[1748346553035,2.10208925,109600.0,109590.0,0.2883643]
[1748346553431,0.1824341,109590.0,109580.0,0.03123688]
[1748346553643,1.17868833,109590.0,109580.0,0.28123688]
[1748346554142,1.19228131,109590.0,109580.0,0.28123688]
[1748346554538,1.19428131,109590.0,109580.0,0.28123688]
[1748346554740,1.18368833,109590.0,109580.0,0.28223688]
[1748346555346,0.82288833,109590.0,109580.0,0.28223688]
[1748346555539,1.54448833,109590.0,109580.0,0.28223688]
[1748346556348,1.54448833,109590.0,109580.0,0.25113688]
[1748346556733,1.45920922,109590.0,109580.0,0.25113688]
[1748346557132,1.57508434,109590.0,109580.0,0.25113688]
[1748346557343,1.68876247,109590.0,109580.0,0.25113688]
[1748346557535,1.57288735,109590.0,109580.0,0.00113688]
[1748346557848,1.57288735,109590.0,109580.0,0.07113688]
[1748346558040,1.5857962,109590.0,109580.0,0.07113688]
[1748346558244,2.1124362,109590.0,109580.0,0.07113688]
[1748346558840,1.99875807,109590.0,109580.0,0.07113688]
[1748346559048,1.99875807,109590.0,109580.0,0.30113688]
[1748346559248,2.01257625,109590.0,109580.0,0.30113688]
[1748346560140,2.01257625,109590.0,109580.0,0.33383688]
[1748346561345,1.29097625,109590.0,109580.0,0.33383688]
[1748346561552,2.01257625,109590.0,109580.0,0.33383688]
[1748346562846,2.09778247,109590.0,109580.0,0.33383688]
[1748346563053,2.18903447,109590.0,109580.0,0.30113688]
[1748346563245,2.18903447,109590.0,109580.0,0.11113688]
[1748346568358,3.22419447,109590.0,109580.0,0.11113688]
[1748346568544,3.13294247,109590.0,109580.0,0.11113688]
[1748346568938,3.13294247,109590.0,109580.0,0.04954678]
[1748346569139,3.16141438,109590.0,109580.0,0.04954678]
[1748346571749,3.15941438,109590.0,109580.0,0.04954678]
[1748346571949,3.16241438,109590.0,109580.0,0.05054678]
[1748346573151,3.16241438,109590.0,109580.0,0.01391158]
[1748346575256,0.1824507,109580.0,109570.0,0.03173688]
[1748346575446,1.12533467,109580.0,109570.0,0.29373794]
[1748346575750,1.21056286,109580.0,109570.0,0.29373794]
[1748346576352,0.1824674,109570.0,109560.0,0.00394452]
[1748346576556,1.67195137,109570.0,109560.0,0.22012]
[1748346576748,1.75718003,109570.0,109560.0,0.22012]
[1748346577841,1.75818003,109570.0,109560.0,0.25292]
[1748346578247,1.75818003,109570.0,109560.0,0.30511053]
[1748346578447,1.75818003,109570.0,109560.0,0.33741053]
[1748346578761,2.11898003,109570.0,109560.0,0.33741053]
[1748346579952,2.10612804,109570.0,109560.0,0.33741053]
[1748346581450,2.10612804,109570.0,109560.0,0.28522]
[1748346581650,2.10612804,109570.0,109560.0,0.33741053]
[1748346585766,1.38452804,109570.0,109560.0,0.33741053]
[1748346585970,2.10612804,109570.0,109560.0,0.33741053]
[1748346586155,2.10612804,109570.0,109560.0,0.23464855]
[1748346587664,2.10612804,109570.0,109560.0,0.40402845]
[1748346588063,1.38452804,109570.0,109560.0,0.40402845]
[1748346588265,2.10612804,109570.0,109560.0,0.40402845]
[1748346589062,2.10612804,109570.0,109560.0,0.35729053]
[1748346589659,2.10612804,109570.0,109560.0,0.40402747]
[1748346590259,1.38452804,109570.0,109560.0,0.40402747]
[1748346590461,2.10612804,109570.0,109560.0,0.40402747]
[1748346591069,2.11051986,109570.0,109560.0,0.40402782]
[1748346593871,2.11051986,109570.0,109560.0,0.40403245]
[1748346594667,2.11051986,109570.0,109560.0,0.40403524]
[1748346595271,1.99458788,109570.0,109560.0,0.40403524]
[1748346595471,2.11051986,109570.0,109560.0,0.40403524]
[1748346595975,1.68503986,109570.0,109560.0,0.40403524]
[1748346596177,2.11047986,109570.0,109560.0,0.40403524]
[1748346598081,2.10608804,109570.0,109560.0,0.40403524]
[1748346599081,2.11047986,109570.0,109560.0,0.40403524]
[1748346601068,2.11047986,109570.0,109560.0,0.35729053]
[1748346602377,2.10608804,109570.0,109560.0,0.35729053]
[1748346603180,2.0252512,109570.0,109560.0,0.35729053]
[1748346604186,2.02085938,109570.0,109560.0,0.35729053]
[1748346604381,2.02085938,109570.0,109560.0,0.29319053]
[1748346604580,2.13453751,109570.0,109560.0,0.29319053]
[1748346605084,2.13453751,109570.0,109560.0,0.32419053]
[1748346605277,2.13892933,109570.0,109560.0,0.32419053]
[1748346606284,2.13453751,109570.0,109560.0,0.32419053]
[1748346607385,2.13892933,109570.0,109560.0,0.32419053]
[1748346609974,2.13892933,109570.0,109560.0,0.37101694]
[1748346610378,2.13892933,109570.0,109560.0,0.34001694]
[1748346611187,2.13892933,109570.0,109560.0,0.37141694]
[1748346612086,2.13892933,109570.0,109560.0,0.32459053]
[1748346612285,2.13892933,109570.0,109560.0,0.37141584]
[1748346613081,2.13892933,109570.0,109560.0,0.32459053]
[1748346613284,2.02299735,109570.0,109560.0,0.32459053]
[1748346613586,2.13453751,109570.0,109560.0,0.32459053]
[1748346614489,2.13892933,109570.0,109560.0,0.32459053]
[1748346615487,2.13453751,109570.0,109560.0,0.32459053]
[1748346616389,2.01860553,109570.0,109560.0,0.35649053]
[1748346616581,2.13453751,109570.0,109560.0,0.35649053]
[1748346616982,1.70909751,109570.0,109560.0,0.35649053]
[1748346617184,2.13445751,109570.0,109560.0,0.35649053]
[1748346617888,2.01852553,109570.0,109560.0,0.35649053]
[1748346618088,2.13445751,109570.0,109560.0,0.35649053]
[1748346619691,1.0061874,109570.0,109560.0,0.47242251]
[1748346619885,1.82696389,109570.0,109560.0,0.68883771]
[1748346620080,1.51696389,109570.0,109560.0,0.50635371]
[1748346620283,1.85684389,109570.0,109560.0,0.50635371]
[1748346620491,1.52135571,109570.0,109560.0,0.50635371]
[1748346620691,1.57135571,109570.0,109560.0,0.50635371]
[1748346620887,1.62823208,109570.0,109560.0,0.50635371]
[1748346621585,1.62384026,109570.0,109560.0,0.50635371]
[1748346622297,1.93384026,109570.0,109560.0,0.50635371]
[1748346622490,2.04977224,109570.0,109560.0,0.38659053]
[1748346622693,1.88247224,109570.0,109560.0,0.50635183]
[1748346623098,1.77239224,109570.0,109560.0,0.50635183]
[1748346623394,1.60646026,109570.0,109560.0,0.50635183]
[1748346623595,1.65646026,109570.0,109560.0,0.50635183]
[1748346623996,1.60646026,109570.0,109560.0,0.50635183]
[1748346624495,1.71646026,109570.0,109560.0,0.50635183]
[1748346624691,1.19010026,109570.0,109560.0,0.50635183]
[1748346624898,1.71646026,109570.0,109560.0,0.50635183]
[1748346626101,1.71646026,109570.0,109560.0,0.50252251]
[1748346626588,1.71646026,109570.0,109560.0,0.50635093]
[1748346627287,1.63112377,109570.0,109560.0,0.50635093]
[1748346627495,1.63104377,109570.0,109560.0,0.50635093]
[1748346627691,1.71638026,109570.0,109560.0,0.50635093]
[1748346627895,1.5741674,109570.0,109560.0,0.51776173]
[1748346628095,1.65950389,109570.0,109560.0,0.51776173]
[1748346629105,1.65950389,109570.0,109560.0,0.56488684]
[1748346629401,1.65950389,109570.0,109560.0,0.51776173]
[1748346629402,1.4641674,109570.0,109560.0,0.51776173]
[1748346629701,0.9378874,109570.0,109560.0,0.51776173]
[1748346629902,1.4641274,109570.0,109560.0,0.51776173]
[1748346631802,1.54946389,109570.0,109560.0,0.56488207]
[1748346632002,1.4641274,109570.0,109560.0,0.56488207]
[1748346632701,0.00112,109570.0,109560.0,1.1574497]
[1748346632997,0.00112,109570.0,109560.0,1.25948669]
[1748346632998,0.6088274,109570.0,109560.0,1.25948669]
[1748346633203,0.6087074,109570.0,109560.0,1.1218198]
[1748346633407,0.6088274,109570.0,109560.0,1.1218198]
[1748346633598,0.6088274,109570.0,109560.0,1.11671073]
[1748346634394,0.6088274,109570.0,109560.0,1.01595439]
[1748346634704,0.6088274,109570.0,109560.0,1.27208259]
[1748346634898,0.6088274,109570.0,109560.0,0.91128259]
[1748346635305,0.1835874,109570.0,109560.0,0.91638344]
[1748346635605,0.6088274,109570.0,109560.0,0.91638344]
[1748346635803,0.6088274,109570.0,109560.0,0.91128259]
[1748346636405,0.6088274,109570.0,109560.0,0.91638258]
[1748346636603,0.6088274,109570.0,109560.0,0.91638037]
[1748346637009,0.1835874,109570.0,109560.0,0.91638037]
[1748346637306,0.6087874,109570.0,109560.0,0.91638037]
[1748346640105,0.6087874,109570.0,109560.0,1.01696481]
[1748346640295,0.6087874,109570.0,109560.0,1.10987909]
[1748346641307,0.6413874,109570.0,109560.0,1.12163661]
[1748346642501,0.6413874,109570.0,109560.0,0.88063661]
[1748346642801,0.6413874,109570.0,109560.0,1.18063661]
[1748346643000,0.64577922,109570.0,109560.0,1.18063661]
[1748346643502,0.64577922,109570.0,109560.0,1.06864358]
[1748346643696,0.64577922,109570.0,109560.0,1.18061665]
[1748346644396,0.67757922,109570.0,109560.0,1.18061665]
[1748346644591,0.67757922,109570.0,109560.0,1.08934466]
[1748346644996,0.6731874,109570.0,109560.0,1.08934466]
[1748346646006,0.70767922,109570.0,109560.0,1.08934466]
[1748346647105,1.06847922,109570.0,109560.0,1.089357]
[1748346647305,1.06847922,109570.0,109560.0,0.9545852]
[1748346647500,1.06847922,109570.0,109560.0,0.83865322]
[1748346647704,1.06847922,109570.0,109560.0,0.84247406]
[1748346647907,1.06847922,109570.0,109560.0,0.92764435]
[1748346648711,1.06847922,109570.0,109560.0,0.83481275]
[1748346650300,1.06847922,109570.0,109560.0,0.84247406]
[1748346650706,1.06847922,109570.0,109560.0,0.59123588]
[1748346650911,1.06847922,109570.0,109560.0,0.41575188]
[1748346651106,1.38847922,109570.0,109560.0,0.41957304]
[1748346652513,1.38847922,109570.0,109560.0,0.53550502]
[1748346652899,1.38847922,109570.0,109560.0,0.53040503]
[1748346653810,1.38847922,109570.0,109560.0,0.71288903]
[1748346654015,1.38847922,109570.0,109560.0,0.65442767]
[1748346654202,1.38847922,109570.0,109560.0,0.69767171]
[1748346654405,1.06847922,109570.0,109560.0,0.71290576]
[1748346654718,1.11847922,109570.0,109560.0,0.71290576]
[1748346654897,1.10847922,109570.0,109560.0,0.71290576]
[1748346655104,0.68327922,109570.0,109560.0,0.71290576]
[1748346655413,1.06831922,109570.0,109560.0,0.74470576]
[1748346655616,0.64327922,109570.0,109560.0,0.74470576]
[1748346655910,1.16919922,109570.0,109560.0,0.86063774]
[1748346656098,1.16931922,109570.0,109560.0,0.92913773]
[1748346656303,0.74415922,109570.0,109560.0,0.92913773]
[1748346656505,1.16931922,109570.0,109560.0,0.69727377]
[1748346656704,1.16931922,109570.0,109560.0,0.92913773]
[1748346657212,1.1649274,109570.0,109560.0,0.92913773]
[1748346657508,1.1649274,109570.0,109560.0,0.88207037]
[1748346657711,0.6388874,109570.0,109560.0,0.88207166]
[1748346658014,1.0639274,109570.0,109560.0,0.88207166]
[1748346658214,1.0638074,109570.0,109560.0,0.88207166]
[1748346658413,1.0639274,109570.0,109560.0,0.88207166]
[1748346658610,0.6388874,109570.0,109560.0,0.88207166]
[1748346658911,1.0639274,109570.0,109560.0,0.88207166]
[1748346659416,1.0639274,109570.0,109560.0,0.64638386]
[1748346659611,1.0338274,109570.0,109560.0,0.87824782]
[1748346660114,1.07121922,109570.0,109560.0,0.87824782]
[1748346661919,1.07121922,109570.0,109560.0,0.64638386]
[1748346662109,1.07121922,109570.0,109560.0,0.87824782]
[1748346662609,1.07121922,109570.0,109560.0,0.64638386]
[1748346662816,0.64617922,109570.0,109560.0,0.84654782]